[Event "Czech Open-Rapid 2022"]
[Site "Pardubice"]
[Date "2022.07.21"]
[Round "5.12"]
[White "Blatny, Pavel"]
[Black "Valenta, Vit Vaclav"]
[Result "1-0"]
[ECO "A01"]
[WhiteElo "2325"]
[BlackElo "1996"]
[Annotator "TA"]
[PlyCount "91"]
[EventDate "2022.07.20"]
[EventType "swiss"]
[EventCountry "CZE"]
[SourceTitle "playchess.com"]
[Source "ChessBase"]
[SourceQuality "1"]
[TimeControl "1200+10"]

{[%evp 9,91,-63,-62,-114,-83,-181,-115,-320,-174,-339,-79,-115,-67,-69,-39,-91,-14,-29,-27,-91,-116,-97,-13,-45,-37,-94,-105,-120,-105,-121,-121,-138,-122,-124,-110,-160,-85,-147,-129,-141,-147,-356,-344,-447,-383,-456,-449,-535,-535,-507,-410,-486,-502,-472,-492,-517,-463,-509,-504,-468,-266,-261,-267,-254,-237,-247,-262,-262,-196,-195,0,0,0,0,227,222,2246,2078,5281,1393,29985,29983,29982,29973]} 1. b3 {[%emt 0:00:03]} Nf6 {[%emt 0:00:04]} 2. Bb2 {[%emt 0:00:01]} g6 {[%emt 0:00:01]} 3. g4 {[%emt 0:00:03]} h6 {[%emt 0:00:11]} 4. Bg2 {[%emt 0:00:06]} Bg7 {[%emt 0:00:07]} 5. h4 {[%emt 0:00:35]} d5 {[%emt 0:01:21]} 6. f3 {[%emt 0:00:03]} (6. g5 $15 hxg5 7. hxg5 Rxh1 8. Bxh1) 6... Qd6 {[%emt 0:00:22][%cal Of6g4]} 7. Kf1 {[%emt 0:00:08] [#]} (7. Nc3 $17 {might work better.}) 7... O-O {[%emt 0:01:15]} (7... Nh5 $1 $19 {[%mdl 512]} 8. Bxg7 Nxg7) 8. c4 $2 {[%emt 0:01:24] [#]} (8. Qc1 $17) 8... dxc4 {[%emt 0:01:01]} (8... Ne4 $142 $1 {[%mdl 512]} 9. c5 Qg3 $1 10. fxe4 Bxb2) 9. bxc4 $2 {[%emt 0:00:31] [#]} (9. Nc3 {is a better defense.}) 9... Qb6 $2 {[%emt 0:00:06]} (9... Ne4 $1 $19 {[%mdl 512] has better winning chances.} 10. Bxg7 Ng3+ 11. Ke1 Nxh1 12. Bxh1 Kxg7) 10. Qb3 {[%emt 0:00:43]} Nbd7 {[%emt 0:01:32]} (10... Rd8 $17 {White must now prevent ...Nc6.} 11. Bc3 Nc6) 11. Nc3 $1 $15 {[%emt 0:00:50]} c6 {[%emt 0:01:06]} (11... Nc5 $5 {[%cal Rc5b3]} 12. Qc2 Rd8 $15) 12. Nh3 {[%emt 0:00:38]} (12. Rb1 $1 $15) 12... e5 {[%emt 0:00:54]} (12... Nc5 $17 13. Qa3 Nfd7) 13. d3 {[%emt 0:00:38]} (13. Nf2 {with more complications.} e4 14. Na4 Qa5 15. d4) 13... Nc5 $36 {[%emt 0:01:48][%mdl 2048] Black has some pressure.} 14. Qxb6 {[%emt 0:00:34]} (14. Qa3 $11) 14... axb6 $17 {[%emt 0:00:01]} 15. Nf2 {[%emt 0:00:27] Against e4} Be6 {[%emt 0:00:17]} (15... e4 $1 $17 {aiming for ...exd3.} 16. dxe4 Be6) 16. Kg1 {[%emt 0:00:30]} Nfd7 {[%emt 0:01:06]} 17. Kh2 {[%emt 0:00:26] [#]} ({White should play} 17. Rb1 $15) 17... f5 $1 {[%emt 0:00:37]} 18. gxf5 {[%emt 0:00:18]} gxf5 {[%emt 0:00:18][%cal Oe5e4]} 19. Bh3 {[%emt 0:00:18]} Bf6 {[%emt 0:00:45][%cal Bg7f6,Bf6g5,Bg5h4,Bh4e7][%mdl 32]} 20. Rhg1+ {[%emt 0:00:01]} Kh7 {[%emt 0:00:02]} 21. h5 {[%emt 0:00:23]} Bg5 {[%emt 0:00:20]} 22. Bc1 {[%emt 0:00:06]} (22. Ncd1 $142) 22... Rg8 {[%emt 0:00:31]} (22... Nb3 $142 23. Bxg5 Nxa1) 23. e4 {[%emt 0:01:22]} (23. Rb1 $142) 23... f4 {[%emt 0:01:52] Threatens to win with ...Bxh3.} 24. Bxe6 {[%emt 0:00:10]} Nxe6 {[%emt 0:00:02]} 25. Ng4 $2 {[%emt 0:00:06]} (25. Ne2 $17) 25... Nd4 {[%emt 0:00:54]} 26. Rf1 {[%emt 0:00:27]} Bh4 {[%emt 0:00:49]} 27. Kh3 {[%emt 0:00:09]} Be7 {[%emt 0:00:31]} 28. Rb1 {[%emt 0:00:13]} Rg5 {[%emt 0:00:06]} 29. Kg2 {[%emt 0:00:19]} Rag8 {[%emt 0:00:11]} 30. Rg1 {[%emt 0:01:22]} Bc5 {[%emt 0:00:42][%cal Od4f3]} ({Don't go for} 30... Rxh5 $2 31. Na4 $19) 31. Na4 {[%emt 0:00:23] [#]} Nxf3 $1 {[%emt 0:00:43][%mdl 512]} 32. Nxc5 {[%emt 0:00:26]} Nxg1 {[%emt 0:00:04]} 33. Nxd7 {[%emt 0:00:03]} Rxg4+ {[%emt 0:00:07]} 34. Kf1 {[%emt 0:00:04]} Nf3 {[%emt 0:01:46]} (34... Nh3 $142 {( -> ...Rg1+)} 35. Nf6+ Kh8 36. Nxg4 Rxg4) 35. Nf6+ $19 {[%emt 0:00:03]} Kh8 {[%emt 0:00:02] Hoping for ...Rg1+.} 36. Nxg4 {[%emt 0:00:11]} Rxg4 {[%emt 0:00:03]} 37. Rxb6 {[%emt 0:00:09][%mdl 4096] Endgame [#] KRB-KRN} Nh2+ $1 {[%emt 0:00:41]} 38. Kf2 {[%emt 0:01:31]} f3 {[%emt 0:00:02]} 39. Rb2 {[%emt 0:00:01]} (39. Bxh6 {is a self mate.} Rg2+ 40. Ke1 f2+ 41. Kd2 f1=Q+ 42. Kc3 Qe1+) 39... Kg7 $2 {[%emt 0:03:00]} (39... b5 $19 {And now ...Rg2+ would win.} 40. a4 (40. cxb5 $2 cxb5 41. a4 Rg2+ 42. Ke1 Ng4 $19) 40... Rg2+ 41. Ke1 Ng4) 40. Rxb7+ {[%emt 0:00:23]} Kf6 {[%emt 0:00:01]} 41. Rb2 $1 {[%emt 0:00:01]} (41. Bxh6 {leads to mate.} Rg2+ 42. Ke1 f2+ 43. Kd2 f1=Q+ 44. Kc3 Qe1+) 41... Rg2+ $2 {[%emt 0:00:38]} (41... Ke6 $11 {and Black stays safe.}) 42. Ke3 $18 {[%emt 0:00:04]} Rxb2 {[%emt 0:00:07]} (42... Rg1) 43. Bxb2 {[%emt 0:00:02]} Kg5 {[%emt 0:00:04]} 44. Kf2 {[%emt 0:00:31]} (44. a4 $142 Ng4+ 45. Kxf3) 44... Kg4 {[%emt 0:00:33]} 45. a4 {[%emt 0:00:09][%cal Ba2a4,Ba4a5][%mdl 32]} Kxh5 {[%emt 0:00:22]} 46. a5 {[%emt 0:00:13] Weighted Error Value: White=0.40/Black=0.70} 1-0

[Event "Czech Open-Rapid 2022"]
[Site "Pardubice"]
[Date "2022.07.21"]
[Round "5.13"]
[White "Mladek, Richard"]
[Black "Mierins, Emils Janis"]
[Result "1-0"]
[ECO "A58"]
[WhiteElo "2330"]
[BlackElo "2042"]
[Annotator "TA"]
[PlyCount "161"]
[EventDate "2022.07.20"]
[EventType "swiss"]
[EventCountry "CZE"]
[SourceTitle "playchess.com"]
[Source "ChessBase"]
[SourceQuality "1"]
[TimeControl "1200+10"]

{[%evp 9,161,0,52,49,51,44,105,59,166,31,36,35,48,39,47,-15,-10,0,0,0,48,57,67,62,58,53,69,0,0,0,0,0,0,0,0,-133,-120,-148,-140,-192,-183,-199,-195,-204,-202,-222,-210,-205,-202,-218,-193,-243,-234,-240,-217,-258,-258,-241,-164,-170,-172,-199,-176,-200,-107,-82,-85,-198,-150,-150,0,-197,0,-160,-122,-133,0,0,0,0,0,0,0,0,0,0,0,0,0,0,0,0,0,0,8,0,0,-16,-23,-68,0,-225,0,0,0,0,0,0,8,8,8,8,7,8,4,8,118,126,1127,1108,731,541,497,339,506,459,357,374,363,22,22,22,22,22,22,22,30,22,22,18,28,26,40,40,29975,29976,29986,29987,29987,29988,29994,29995,29998,29999]} 1. d4 {[%emt 0:00:02]} Nf6 {[%emt 0:01:15]} 2. c4 {[%emt 0:00:02][%cal Bc2c4,Bc4b5][%mdl 32]} c5 {[%emt 0:00:07]} 3. d5 {[%emt 0:00:01]} b5 {[%emt 0:00:02]} 4. cxb5 {[%emt 0:00:00]} a6 {[%emt 0:00:01]} 5. bxa6 {[%emt 0:00:02]} g6 {[%emt 0:00:02]} (5... e6 $1 $11) 6. Nc3 $14 {[%emt 0:00:00][%cal Oa6a7] A58: Benko/Volga Gambit: Lines with 5 bxa6.} Bg7 {[%emt 0:00:02]} 7. e4 {[%emt 0:00:03]} Qa5 {[%emt 0:00:03]} (7... O-O $14) 8. Bd2 {[%emt 0:00:17]} ({Reject} 8. e5 $6 Ne4 $11) (8. a7 $1 $16 {[%cal Ra7b8]} Rxa7 9. Bd2) 8... Bxa6 {[%emt 0:00:04]} (8... O-O $14) 9. Be2 {[%emt 0:00:49]} (9. e5 $18) 9... O-O {[%emt 0:00:06]} 10. Nf3 {[%emt 0:00:14]} Bxe2 {[%emt 0:00:04]} 11. Qxe2 {[%emt 0:00:08]} Qa6 {[%emt 0:00:01]} 12. Qxa6 {[%emt 0:01:20]} (12. a4 $14) 12... Nxa6 $11 {[%emt 0:00:02]} 13. Ke2 {[%emt 0:02:34]} Rfb8 {[%emt 0:00:12]} 14. Rab1 {[%emt 0:02:35] [#]} Rb4 $146 {[%emt 0:01:58]} (14... Nc7 $11) ({Predecessor:} 14... d6 15. a3 Rb3 16. Kd3 Rab8 17. Kc2 Nd7 18. Rhe1 c4 19. Be3 Ndc5 20. Bxc5 Nxc5 {½-½ (63) Shimelkov,V (2159)-Neiksans,A (2574) Chess.com INT 2022}) 15. a3 $14 {[%emt 0:00:26]} Rb3 {[%emt 0:01:01]} 16. Rhc1 {[%emt 0:01:51]} Rab8 {[%emt 0:00:57]} 17. Rc2 {[%emt 0:00:01]} d6 {[%emt 0:02:00]} 18. Be1 {[%emt 0:01:21]} (18. Bg5 $14) 18... Nd7 $11 {[%emt 0:00:24]} (18... Ne8 {with more complications.} 19. Kd3 f5 20. exf5 gxf5 21. Nd2 R3b7) 19. Nd2 {[%emt 0:00:29]} Bxc3 {[%emt 0:02:58][%mdl 64] Pin} 20. Nxb3 {[%emt 0:02:15]} Bxe1 {[%emt 0:00:03]} 21. Nxc5 $1 {[%emt 0:00:08]} Naxc5 {[%emt 0:00:37]} 22. Kxe1 {[%emt 0:00:53]} (22. Rxe1 $11 Nxe4 23. Kd1) 22... Nxe4 $17 {[%emt 0:00:26]} 23. b4 {[%emt 0:00:28]} Nb6 {[%emt 0:01:26]} 24. Rc7 {[%emt 0:01:36]} (24. Rd1 $17) 24... Nxd5 $19 {[%emt 0:00:40]} 25. Ra7 {[%emt 0:00:01]} Nec3 {[%emt 0:03:08]} 26. Rb2 {[%emt 0:00:39]} Kf8 {[%emt 0:02:27]} 27. f3 {[%emt 0:01:17]} Nb6 {[%emt 0:00:47]} 28. Rc2 {[%emt 0:00:21]} Nb5 {[%emt 0:00:40]} 29. Ra6 {[%emt 0:00:35]} Nd5 {[%emt 0:01:12]} 30. Kd2 {[%emt 0:00:45]} (30. Kf2 {is a better defense.}) 30... Ke8 {[%emt 0:00:03]} 31. Ra5 {[%emt 0:00:31]} Nbc7 {[%emt 0:00:25]} 32. Rb2 {[%emt 0:00:52]} Kd7 {[%emt 0:00:38]} 33. Rc2 {[%emt 0:01:10]} Ra8 {[%emt 0:01:20] Prevents Ra7.} 34. Rxa8 {[%emt 0:00:03]} Nxa8 {[%emt 0:00:01]} 35. Rc1 {[%emt 0:01:14]} Nab6 {[%emt 0:00:13]} 36. Kc2 {[%emt 0:00:07]} Kc6 {[%emt 0:00:23]} (36... Nf4 $19 37. g3 Ne2) 37. Kb3+ $17 {[%emt 0:00:07]} Kb5 {[%emt 0:00:01]} 38. Rd1 {[%emt 0:00:40]} (38. Re1 $17 {was necessary.}) 38... Nc7 {[%emt 0:00:19]} (38... Ne3 $19 39. Rd2 d5 40. a4+ Nxa4) 39. Rc1 {[%emt 0:00:14]} Ncd5 {[%emt 0:00:01]} (39... Ne6 $1 $17 {[%cal Re6d4]} 40. Rd1 f6) 40. Rd1 $19 {[%emt 0:00:02][%cal Oa3a4]} Nc7 $2 {[%emt 0:00:07]} (40... Ne3 $19 41. Rd2 d5 42. a4+ Nxa4) 41. Ra1 {[%emt 0:00:01]} ({Only move:} 41. Rc1 $1 $11 Ne6 42. Rd1) 41... Na4 {[%emt 0:00:27]} 42. Rc1 {[%emt 0:00:01]} Nd5 {[%emt 0:00:01]} (42... Ne6 $17 {Strongly threatening ...Nd4+.} 43. Rd1 Nb6) 43. Rc8 $1 $11 {[%emt 0:00:06]} Nab6 {[%emt 0:00:01]} 44. Rh8 {[%emt 0:00:11]} h5 {[%emt 0:00:02]} 45. Rb8 {[%emt 0:00:23]} Kc6 {[%emt 0:00:31]} 46. a4 {[%emt 0:00:04]} Kc7 {[%emt 0:00:01]} 47. Rf8 {[%emt 0:00:04]} f6 {[%emt 0:00:01]} 48. a5 {[%emt 0:00:07]} Nd7 {[%emt 0:00:04]} 49. Rg8 {[%emt 0:00:02]} g5 {[%emt 0:00:05]} 50. Kc4 {[%emt 0:00:05]} Ne3+ {[%emt 0:00:37]} 51. Kb5 {[%emt 0:00:02]} Nc2 {[%emt 0:00:06]} 52. Rg7 {[%emt 0:00:24]} Nd4+ {[%emt 0:00:07]} 53. Kc4 {[%emt 0:00:08]} Nc6 {[%emt 0:00:01]} 54. Rh7 {[%emt 0:00:19]} h4 {[%emt 0:00:01]} (54... Nde5+ $15 55. Kb3 h4) 55. Kb5 $2 {[%emt 0:00:21]} (55. f4 $1 $11 {and White stays safe.}) 55... Nd4+ $2 {[%emt 0:00:07]} ({Better is} 55... d5 $19 {And now ...d4 would win.} 56. Ka4 d4) 56. Ka4 {[%emt 0:00:02]} Nf5 {[%emt 0:00:29]} 57. b5 {[%emt 0:00:08]} Nc5+ {[%emt 0:00:03]} 58. Kb4 {[%emt 0:00:07]} Nd3+ {[%emt 0:00:14]} 59. Kc4 {[%emt 0:00:06]} Nc5 {[%emt 0:00:16]} 60. g4 {[%emt 0:00:22]} hxg3 $1 {[%emt 0:00:01]} 61. hxg3 {[%emt 0:00:02]} Ne3+ {[%emt 0:00:33]} 62. Kd4 {[%emt 0:00:01]} Nf5+ {[%emt 0:00:06]} (62... Nc2+ $1 $11 63. Kc3 Na3) 63. Kc3 $16 {[%emt 0:00:06]} Nxg3 $2 {[%mdl 8192]} (63... Nd7 $16) 64. Rxe7+ $18 {[%emt 0:00:04]} Kb8 {[%emt 0:00:10]} 65. Kc4 {[%emt 0:00:33]} Nf5 {[%emt 0:00:13]} 66. Rh7 {[%emt 0:00:02] aiming for Kd5.} Ne3+ {[%emt 0:00:02]} (66... g4 {was called for.} 67. fxg4 Ne3+ 68. Kd4 Nxg4) 67. Kd4 {[%emt 0:00:06]} Nc2+ {[%emt 0:00:15]} 68. Kd5 {[%emt 0:00:10] Threatens to win with Rh2.} Nb4+ {[%emt 0:00:03] [#]} 69. Kxd6 $2 {[%emt 0:00:03]} ({White must play} 69. Kc4 $1 $18 {[%cal Rc4b4]} Nc2 70. a6 Ne3+ 71. Kd4 Nc2+ 72. Kc3) 69... Nb7+ $11 {[%emt 0:00:00]} 70. Ke6 {[%emt 0:00:11] Hoping for a6.} Nxa5 {[%emt 0:00:03]} 71. Kxf6 {[%emt 0:00:14]} Nc4 {[%emt 0:00:21]} 72. Kxg5 {[%emt 0:00:18]} Nd6 {[%emt 0:00:05]} 73. b6 {[%emt 0:00:57][%cal Bb5b6,Bb6b7][%mdl 32]} Nc8 {[%emt 0:00:18]} 74. f4 {[%emt 0:00:04]} Nd5 {[%emt 0:00:01]} 75. b7 {[%emt 0:00:07]} Nce7 {[%emt 0:00:14]} 76. f5 {[%emt 0:00:05][%cal Oh7e7] White threatens Rxe7! and mate.} Nxf5 $2 {[%emt 0:00:04][%mdl 8192]} 77. Kxf5 {[%emt 0:00:06] White mates.} Nc7 {[%emt 0:00:01] [#]} 78. Ke5 $1 {[%emt 0:00:04]} Na6 {[%emt 0:00:43]} 79. Kd5 {[%emt 0:00:10]} Nb4+ {[%emt 0:00:20]} 80. Kc5 {[%emt 0:00:05]} Nc2 {[%emt 0:00:16]} 81. Kb6 {[%emt 0:00:03] Both players deserved the win here.  Weighted Error Value: White=0.30/Black=0.25 (precise)} 1-0

[Event "Czech Open-Rapid 2022"]
[Site "Pardubice"]
[Date "2022.07.21"]
[Round "5.14"]
[White "Jares, Michal"]
[Black "Seger, Ruediger"]
[Result "1/2-1/2"]
[ECO "A49"]
[WhiteElo "2208"]
[BlackElo "2299"]
[Annotator "TA"]
[PlyCount "59"]
[EventDate "2022.07.20"]
[EventType "swiss"]
[EventCountry "CZE"]
[SourceTitle "playchess.com"]
[Source "ChessBase"]
[SourceQuality "1"]
[TimeControl "1200+10"]

{[%evp 18,59,24,26,36,15,15,19,25,14,22,16,24,0,0,-10,-5,-5,0,0,0,0,0,0,0,-16,-12,-17,-17,-16,-8,-9,-9,-5,-4,-12,-8,-5,-7,-14,-5,-7,-16,-1131]} 1. d4 {[%emt 0:00:03]} Nf6 {[%emt 0:00:01]} 2. Nf3 {[%emt 0:00:03]} g6 {[%emt 0:00:01]} 3. g3 {[%emt 0:00:02]} Bg7 {[%emt 0:00:03]} 4. Bg2 {[%emt 0:00:02]} O-O {[%emt 0:00:02]} 5. O-O {[%emt 0:00:02]} d5 {[%emt 0:00:01]} 6. c4 {[%emt 0:00:03]} dxc4 {[%emt 0:00:02]} 7. Na3 {[%emt 0:00:05][%cal Bb1a3,Ba3c4,Bc4e5][%mdl 32]} Nc6 {[%emt 0:00:01]} 8. Nxc4 {[%emt 0:00:12]} Be6 {[%emt 0:00:02]} 9. Nce5 {[%emt 0:00:16]} Bd5 {[%emt 0:00:10]} 10. Bf4 {[%emt 0:00:37]} e6 {[%emt 0:00:45] D77: Fianchetto Grünfeld: 6 0-0: Replies other than 6...c6.} 11. Nxc6 {[%emt 0:00:37]} Bxc6 {[%emt 0:00:02]} 12. Be5 {[%emt 0:00:03] [#]} Qe7 $146 {[%emt 0:00:41]} ({Predecessor:} 12... Be4 13. Qc1 Nd5 14. Bxg7 Kxg7 15. Rd1 Qe7 16. Qc5 Rfd8 17. Rac1 c6 18. a3 Qxc5 19. dxc5 {½-½ (60) Vesterlund,J-Gustafsson,F Sweden 1998}) 13. Rc1 {[%emt 0:00:18]} Rfd8 {[%emt 0:00:12]} 14. Qc2 {[%emt 0:00:23]} Rac8 {[%emt 0:03:52]} 15. Rfd1 {[%emt 0:01:04]} Bh6 {[%emt 0:00:19] The position is equal.} 16. Bf4 {[%emt 0:02:29]} Bxf4 {[%emt 0:01:19]} 17. gxf4 {[%emt 0:00:02]} Be4 {[%emt 0:01:16]} 18. Qc5 {[%emt 0:01:04]} Qxc5 {[%emt 0:02:54]} 19. Rxc5 {[%emt 0:02:50]} b6 {[%emt 0:02:17]} 20. Rcc1 {[%emt 0:00:02]} c5 {[%emt 0:02:31]} 21. dxc5 {[%emt 0:00:04]} Rxd1+ {[%emt 0:00:02]} 22. Rxd1 {[%emt 0:00:01]} Rxc5 {[%emt 0:00:02] Strongly threatening ...Rc2.} 23. Nd4 {[%emt 0:00:31] Against Rc2} Bxg2 {[%emt 0:00:22]} 24. Kxg2 $11 {[%emt 0:00:03][%mdl 4096] Endgame KRN-KRN} h6 {[%emt 0:00:19]} 25. e3 {[%emt 0:00:51]} Kf8 {[%emt 0:01:18]} 26. Nb3 {[%emt 0:00:51]} Rc7 {[%emt 0:00:56]} 27. Kf3 {[%emt 0:00:20]} Ke7 {[%emt 0:00:08]} 28. h3 {[%emt 0:00:27]} Nd5 {[%emt 0:00:18]} 29. Rc1 {[%emt 0:00:30]} Rxc1 {[%emt 0:01:59]} 30. Ke4 $2 {[%mdl 40960] Weighted Error Value: White=0.06 (flawless) /Black=0.02 (flawless) . An unexpected result.} (30. Nxc1 $11 Nb4 31. a3) 1/2-1/2

[Event "Czech Open-Rapid 2022"]
[Site "Pardubice"]
[Date "2022.07.21"]
[Round "5.15"]
[White "Kovalskyi, Roman"]
[Black "Jurek, Josef"]
[Result "1-0"]
[ECO "C02"]
[WhiteElo "2056"]
[BlackElo "2200"]
[Annotator "TA"]
[PlyCount "95"]
[EventDate "2022.07.20"]
[EventType "swiss"]
[EventCountry "CZE"]
[SourceTitle "playchess.com"]
[Source "ChessBase"]
[SourceQuality "1"]
[TimeControl "1200+10"]

{[%evp 10,95,2,0,0,-45,-47,-50,-49,-63,-82,-77,-77,-154,-149,-150,-154,-154,-140,-131,-8,-2,-22,-290,-290,-285,-287,-277,-291,-294,-288,-322,-237,-226,-44,-143,-150,-241,-230,-215,-118,-126,-127,-127,-185,-159,-127,-238,-219,-336,-239,-243,-75,-106,0,0,0,0,0,0,793,684,349,0,0,0,0,0,0,0,0,0,0,0,0,0,0,0,0,0,0,0,0,0,0,0,0,0]} 1. e4 {[%emt 0:00:03]} e6 {[%emt 0:00:05]} 2. d4 {[%emt 0:00:01]} d5 {[%emt 0:00:02]} 3. e5 {[%emt 0:00:01]} c5 {[%emt 0:00:09]} 4. c3 {[%emt 0:00:02]} Nc6 {[%emt 0:00:01]} 5. Nf3 {[%emt 0:00:01]} Bd7 {[%emt 0:00:01]} 6. Bd3 {[%emt 0:00:25]} cxd4 {[%emt 0:00:07] C02: French: Advance Variation.} 7. O-O {[%emt 0:00:25] is the new trend.} dxc3 {[%emt 0:01:13]} 8. Nxc3 {[%emt 0:00:02]} Nge7 {[%emt 0:00:03] Black is slightly better.} 9. h4 {[%emt 0:00:09] [#]} Ng6 $146 {[%emt 0:00:17]} ({Predecessor:} 9... Nb4 10. Bb1 Nec6 11. a3 Na6 12. b4 Nc7 13. Re1 a6 14. Bb2 h6 15. h5 Be7 {1-0 (34) Kiolbasa,O (2375)-Bayat,S (2092) Chess.com INT 2022}) 10. Re1 {[%emt 0:00:04]} Nxh4 {[%emt 0:00:21]} 11. Nxh4 {[%emt 0:00:01]} (11. Ng5 $142 g6 12. Qg4) 11... Qxh4 $17 {[%emt 0:00:02]} 12. Nb5 {[%emt 0:00:14]} Rc8 {[%emt 0:00:17] Against Nc7+} (12... Bc5 13. Be3 Bxe3 14. Rxe3 $17) 13. g3 {[%emt 0:01:16]} Qd8 {[%emt 0:01:12]} 14. Qg4 {[%emt 0:00:10]} Nb4 {[%emt 0:03:23]} (14... g5 $17 {Strongly threatening ...h6.} 15. Bxg5 Rg8 16. Bxd8 (16. f4 $2 Qb6+ 17. Kh1 Nb4 $19) 16... Rxg4) 15. Nd6+ $1 $11 {[%emt 0:02:15]} Bxd6 {[%emt 0:00:02]} 16. Qxg7 {[%emt 0:00:01][%mdl 8192] [#]} (16. exd6 $11 {and White is okay.} Nxd3 17. Qxg7) 16... Bf8 $1 $19 {[%emt 0:00:46]} 17. Qxh8 {[%emt 0:00:22]} Nxd3 {[%emt 0:00:03]} 18. Bh6 {[%emt 0:00:01][%csl Gh6][%cal Rh8f8]} Qe7 {[%emt 0:00:09]} 19. Re3 {[%emt 0:02:37]} Bb5 {[%emt 0:01:08]} (19... Nxb2 20. Rb3 $14) 20. Bg7 {[%emt 0:01:10]} Rc2 {[%emt 0:00:42]} ({Inferior is} 20... Nxb2 21. Rb3 Bd3 22. Rxb2 $11) 21. Rf3 {[%emt 0:06:06]} Rxb2 $2 {[%emt 0:03:16]} ({Better is} 21... Nxb2 $19 22. Rb1 b6) 22. Rd1 {[%emt 0:00:08]} ({White must play} 22. Qg8 $15) 22... Rxa2 $17 {[%emt 0:00:53]} 23. Rdxd3 {[%emt 0:00:34]} (23. Rb1 $17 {is a better defense.} a6 24. Qg8) 23... Bxd3 $19 {[%emt 0:00:02]} 24. Rxd3 {[%emt 0:00:01]} Ra3 {[%emt 0:01:00] Inhibits Rc3.} ({Stronger than} 24... Qc5 25. Rf3 Ra3 26. Bxf8 Ra1+ 27. Kg2 Qxf8 28. Qxh7 $17) (24... Rc2 $19 {Threatens to win with ...b5.} 25. Rb3 b6) 25. Bxf8 {[%emt 0:00:37]} Ra1+ {[%emt 0:00:02][%mdl 64] Zwischenzug} 26. Kg2 {[%emt 0:00:15]} Qxf8 {[%emt 0:00:02]} 27. Qxh7 $17 {[%emt 0:00:02][%mdl 4096] Endgame KQR-KQR} Rc1 {[%emt 0:00:25] Inhibits Rc3.} 28. g4 {[%emt 0:05:56]} (28. Rf3 $17) 28... Rc4 $19 {[%emt 0:00:33]} 29. Rg3 {[%emt 0:00:15]} (29. Kg3 $142) 29... Kd7 {[%emt 0:02:25]} 30. g5 {[%emt 0:00:44]} Kc6 $2 {[%emt 0:00:01]} (30... Qe7 $1 $19 {aiming for ...b5.} 31. Qg8 Rf4) 31. Rf3 $17 {[%emt 0:00:05]} Rg4+ {[%emt 0:01:06]} ({Black should play} 31... Qd8 $1 $17 {[%cal Rd8g5]} 32. Qxf7 Qxg5+ 33. Rg3 Qxe5) 32. Kh3 $11 {[%emt 0:00:01]} Rxg5 {[%emt 0:00:02]} 33. Rxf7 {[%emt 0:00:01]} Qa3+ {[%emt 0:01:00]} 34. Kh4 {[%emt 0:00:20] The board is on fire.} Rf5 $2 {[%emt 0:01:12][%mdl 8192]} (34... Rxe5 $2 35. Qc2+ Qc5 36. Rc7+ $3 {[%mdl 512]} Kxc7 37. Qxc5+ Kd7 38. Qxa7 $18) (34... Rg1 $11 35. Qc2+ Kb6 36. Qc7+ Kb5 37. Qxb7+ Kc4) 35. Rxf5 $18 {[%emt 0:01:14]} ({Not} 35. Rxb7 Qa4+ 36. Kh3 Qa3+ 37. Kh4 Qa4+ 38. Kh3 Qa3+ 39. Kh4 $15) 35... exf5 {[%emt 0:00:36] [#]} 36. Qxf5 {[%emt 0:00:01] KQ-KQ} (36. Kg5 $1 $18) 36... Qe7+ $11 {[%emt 0:00:17] The position is equal.} 37. Kg3 {[%emt 0:00:23]} Kc7 {[%emt 0:00:45]} 38. f4 {[%emt 0:00:03][%cal Bf2f4,Bf4f5,Bf5f6][%mdl 32]} b5 {[%emt 0:00:09]} 39. Qd3 {[%emt 0:00:17][%csl LRb5,LRd5]} Qc5 {[%emt 0:00:32]} 40. f5 {[%emt 0:00:00] Black must now prevent f6.} Qc4 {[%emt 0:00:25]} 41. Qd2 {[%emt 0:00:23]} b4 {[%emt 0:00:42] ( -> ...Qc3+)} 42. f6 {[%emt 0:00:10] And now f7 would win.} Qe4 {[%emt 0:00:17]} 43. Qg5 {[%emt 0:00:12]} Qe1+ 44. Kg4 {[%emt 0:00:01]} Qe4+ {[%emt 0:00:00]} 45. Kg3 {[%emt 0:00:18]} Qe1+ {[%emt 0:00:00]} 46. Kg4 {[%emt 0:00:02]} Qe4+ {[%emt 0:00:00]} 47. Kg3 {[%emt 0:00:02]} Qe1+ {[%emt 0:00:00]} 48. Kg4 {[%mdl 32768] Weighted Error Value: White=0.31/Black=0.30. Sensor Board Error (Ke4/e5)?} 1-0

[Event "Czech Open-Rapid 2022"]
[Site "Pardubice"]
[Date "2022.07.21"]
[Round "5.16"]
[White "Brejnik, Gustav"]
[Black "Ret, Adam Josef"]
[Result "1/2-1/2"]
[ECO "D30"]
[WhiteElo "2292"]
[BlackElo "2023"]
[Annotator "TA"]
[PlyCount "51"]
[EventDate "2022.07.20"]
[EventType "swiss"]
[EventCountry "CZE"]
[SourceTitle "playchess.com"]
[Source "ChessBase"]
[SourceQuality "1"]
[TimeControl "1200+10"]

{[%evp 21,51,32,31,28,43,39,65,56,118,91,208,112,91,72,95,50,49,29,74,68,108,72,66,-33,-13,-13,-9,-20,-17,-15,-5,-56]} 1. d4 d5 2. c4 e6 3. Nf3 c5 4. cxd5 exd5 5. g3 Nc6 6. Bg2 Nf6 7. O-O Be7 8. dxc5 Bxc5 9. a3 O-O 10. b4 Bd6 11. Nc3 Be6 12. Nb5 {[#] D34: Tarrasch Defence: 6 g3 Nf6 7 Bg2 Be7.} Bb8 $146 ({Predecessor:} 12... Be7 13. Nbd4 Qd7 14. Bb2 Bh3 15. Nxc6 bxc6 16. Ne5 Qe6 17. Nxc6 Bxg2 18. Nxe7+ Qxe7 19. Kxg2 Rad8 {1-0 (53) Zia,T (2232)-Ariful,A (1968) Dhaka 2021}) 13. Bb2 a6 14. Nbd4 {White is slightly better.} Bd6 ({Black should play} 14... Nxd4 $14 15. Nxd4 (15. Bxd4 Bd6 $14) (15. Qxd4 Re8 $14) 15... Bg4) 15. Rc1 Rc8 (15... Nxd4 $16 16. Nxd4 (16. Bxd4 a5 $11) 16... Qe7) 16. Nxc6 ({White must play} 16. Nxe6 $18 fxe6 17. Bh3) 16... bxc6 $16 17. Qa4 {Inhibits a5.} a5 18. bxa5 {[%cal Bb4a5,Ba5a6][%mdl 32]} c5 19. a6 Ra8 20. Rfd1 Qd7 21. Qh4 Be7 22. Ne5 {White is more active.} (22. Ng5 $14 h6 23. Nxe6 fxe6 24. Qh3) 22... Qd6 23. Qf4 {The position is equal.} Rxa6 24. Nd3 Qxf4 25. Nxf4 d4 26. h4 {Weighted Error Value: White=0.32/Black=0.23 (precise)} ({Better is} 26. Nxe6 $11 Rxe6 27. Rc2) 1/2-1/2